fUST/lending_fUST_20240705
["ID","MTS","AMOUNT","RATE_DAILY","PERIOD"]
[331155093,1720109454516,-303.82701464,0.00015068,2]
[331155094,1720109454529,-11429.21654253,0.00015068,2]
[331155095,1720109454538,-1574.12,0.00015068,2]
[331155096,1720109454548,-151.0,0.00015068,2]
[331155097,1720109454557,-1176.65,0.00015068,2]
[331155098,1720109454566,-410.53797057,0.00015068,2]
[331155099,1720109454575,-500.0,0.00015068,2]
[331155100,1720109454585,-500.0,0.00015068,2]
[331155101,1720109454594,-887.52199244,0.00015068,2]
[331155102,1720109454619,-500.0,0.00014246,2]
[331155103,1720109454629,-306.24800756,0.00015068,2]
[331155104,1720109454638,-500.0,0.00015068,2]
[331155105,1720109454647,-1275.30335761,0.00015068,2]
[331155106,1720109454778,-1187.86,0.00014246,2]
[331155107,1720109454788,-500.0,0.0001452,2]
[331155108,1720109454798,-500.0,0.00014794,2]
[331155109,1720109454808,-325.49664239,0.00015068,2]
[331155110,1720109454817,-598.65,0.00015068,2]
[331155111,1720109454826,-602.96,0.00015068,2]
[331155112,1720109454836,-500.0,0.00015068,2]
[331155113,1720109454845,-500.0,0.00015068,2]
[331155114,1720109454855,-500.0,0.00015068,2]
[331155115,1720109454864,-500.0,0.00015068,2]
[331155116,1720109454874,-500.0,0.00015068,2]
[331155117,1720109454884,-522.48,0.00015068,2]
[331155118,1720109454893,-500.0,0.00015068,2]
[331155119,1720109454903,-500.0,0.00015068,2]
[331155120,1720109454913,-374.90378399,0.00015068,2]
[331155121,1720109454922,-1011.39,0.00015068,2]
[331155122,1720109454932,-852.52,0.00015068,2]
[331155123,1720109454942,-500.0,0.00015068,2]
[331155124,1720109454952,-500.0,0.00015068,2]
[331155125,1720109454962,-500.0,0.00015068,2]
[331155126,1720109454971,-500.0,0.00015068,2]
[331155127,1720109454981,-500.0,0.00015068,2]
[331155128,1720109454991,-500.0,0.00015068,2]
[331155129,1720109455000,-921.53,0.00015068,2]
[331155130,1720109455009,-756.12,0.00015068,2]
[331155131,1720109455018,-500.0,0.00015068,2]
[331155132,1720109455028,-805.14,0.00015068,2]
[331155133,1720109455040,-500.0,0.00015068,2]
[331155134,1720109455051,-151.0,0.00015068,2]
[331155135,1720109455066,-151.0,0.00015068,2]
[331155136,1720109455075,-935.13,0.00015068,2]
[331155137,1720109455086,-500.0,0.00015068,2]
[331155138,1720109455097,-831.53,0.00015068,2]
[331155139,1720109455107,-500.0,0.00015068,2]
[331155140,1720109455116,-368.924704,0.00015068,2]
[331155141,1720109455127,-500.0,0.00015068,2]
[331155142,1720109455136,-500.0,0.00015068,2]
[331155143,1720109455146,-2488.62,0.00015068,2]
[331155144,1720109455155,-368.924704,0.00015068,2]
[331155145,1720109455164,-500.0,0.00015068,2]
[331155146,1720109455174,-500.0,0.00015068,2]
[331155147,1720109455183,-500.0,0.00015068,2]
[331155148,1720109455192,-500.0,0.00015068,2]
[331155149,1720109455201,-500.0,0.00015068,2]
[331155150,1720109455210,-500.0,0.00015068,2]
[331155151,1720109455219,-3237.42,0.00015068,2]
[331155152,1720109455229,-653.93,0.00015068,2]
[331155153,1720109455239,-500.0,0.00015068,2]
[331155154,1720109455248,-1727.6,0.00015068,2]
[331155155,1720109455258,-500.0,0.00015068,2]
[331155156,1720109455267,-500.0,0.00015068,2]
[331155157,1720109455276,-728.38,0.00015068,2]
[331155158,1720109455285,-401.1997685,0.00015068,2]
[331155159,1720109455295,-500.0,0.00015068,2]
[331155160,1720109455304,-500.0,0.00015068,2]
[331155161,1720109455314,-513.57,0.00015068,2]
[331155162,1720109455324,-453.9198927,0.00015068,2]
[331155163,1720109455333,-1449.27,0.00015068,2]
[331155164,1720109455342,-450.70071136,0.00015068,2]
[331155165,1720109455355,-683.44928864,0.00015068,2]
[331155166,1720109455365,-500.0,0.00015068,2]
[331155167,1720109455375,-247.007352,0.00015068,2]
[331155168,1720109455384,-500.0,0.00015068,2]
[331155169,1720109455393,-247.007352,0.00015068,2]
[331155170,1720109455403,-247.007352,0.00015068,2]
[331155171,1720109455412,-247.007352,0.00015068,2]
[331155172,1720109455422,-6379.07,0.00015068,2]
[331155173,1720109455431,-783.46,0.00015068,2]
[331155174,1720109455440,-844.836982,0.00015068,2]
[331155175,1720109455450,-500.0,0.00015068,2]
[331155176,1720109455459,-844.836982,0.00015068,2]
[331155177,1720109455468,-910.39,0.00015068,2]
[331155178,1720109455478,-283.268574,0.00015068,2]
[331155179,1720109455488,-844.836982,0.00015068,2]
[331155180,1720109455497,-844.836982,0.00015068,2]
[331155181,1720109455506,-1000.0,0.00015068,2]
[331155182,1720109455516,-975.43005954,0.00015068,2]
[331155183,1720109456576,-484.90277892,0.00013488,2]
[331155184,1720109456589,-385.04313321,0.0001452,2]
[331155185,1720109456605,-330.29329238,0.0001452,2]
[331155186,1720109456623,-472.52357441,0.0001452,2]
[331155187,1720109456638,-1187.86,0.00014794,2]
[331155188,1720109456652,-151.34202917,0.00014879,2]
[331155189,1720109456665,-24.56994046,0.00015068,2]
[331155190,1720109456680,-174.06624102,0.00015068,2]
[331155191,1720109456697,-825.93375898,0.00015068,2]
[331155192,1720109456711,-784.06624102,0.00015068,2]
[331155193,1720109456728,-215.93375898,0.00015068,2]
[331155194,1720109456742,-830.22294072,0.00015068,2]
[331155195,1720109456759,-169.77705928,0.00015068,2]
[331155196,1720109456772,-770.30294072,0.00015068,2]
[331155197,1720109456789,-229.69705928,0.00015068,2]
[331155198,1720109456803,-1000.0,0.00015068,2]
[331155199,1720109456818,-1000.0,0.00015068,2]
[331155200,1720109456833,-1000.0,0.00015068,2]
[331155201,1720109456847,-384.226413,0.00015068,2]
[331155202,1720109456860,-500.0,0.00015068,2]
[331155203,1720109456875,-384.226413,0.00015068,2]
[331155204,1720109456889,-1000.0,0.00015068,2]
[331155205,1720109456898,-1000.0,0.00015068,2]
[331155206,1720109456908,-1000.0,0.00015068,2]
[331155207,1720109456917,-808.0907302,0.00015068,2]
[331155208,1720109457333,-466.16787958,0.00013698,2]
[331155209,1720109457346,-33.83212042,0.00013698,2]
[331155210,1720109457355,-500.0,0.00013698,2]
[331155211,1720109457364,-153.0,0.00013777,2]
[331155212,1720109457373,-240.23807589,0.000149,2]
[331155213,1720109457383,-191.9092698,0.00015068,2]
[331155214,1720109457393,-1000.0,0.00015068,2]
[331155215,1720109457403,-1000.0,0.00015068,2]
[331155216,1720109457412,-313.24238689,0.00015068,2]
[331155217,1720109654916,597.70730701,9.999e-05,2]
[331155219,1720109671229,155.09053502,9.999e-05,2]
[331155220,1720109672940,1140.95097749,9.999e-05,2]
[331155221,1720109690073,155.61158796,9.999e-05,2]
[331155222,1720109693919,16226.59446054,9.999e-05,2]
[331155223,1720109696859,155.14547188,9.999e-05,2]
[331155224,1720109707412,4690.36708649,9.999e-05,2]
[331155225,1720109708899,3767.28917554,9.999e-05,2]
[331155227,1720109808405,154.89931544,9.999e-05,2]
[331155228,1720109904533,255.41616213,9.999e-05,2]
[331155240,1720110120715,499.14713183,9.999e-05,2]
[331155241,1720110177455,14369.56865064,9.999e-05,2]
[331155242,1720110177802,208.37564863,9.999e-05,2]
[331155243,1720110181354,154.89931544,9.999e-05,2]
[331155244,1720110211407,154.89931544,9.999e-05,2]
[331155245,1720110217233,481.31478559,9.999e-05,2]
[331155246,1720110237811,436.49865584,9.999e-05,2]
[331155247,1720110242550,516.65341742,9.999e-05,2]
[331155248,1720110264676,187.64478609,9.999e-05,2]
[331155249,1720110279269,723.6137849,9.999e-05,2]
[331155250,1720110279640,661.12832609,9.999e-05,2]
[331155251,1720110296611,566.05938198,9.999e-05,2]
[331155252,1720110342498,176.09888537,9.999e-05,2]
[331155254,1720110367660,187.64478609,9.999e-05,2]
[331155255,1720110391179,198.99823166,9.999e-05,2]
[331155260,1720110401085,247.07848448,9.999e-05,2]
[331155261,1720110403527,154.89931544,9.999e-05,2]
[331155262,1720110408668,181.19706895,9.999e-05,2]
[331155263,1720110408818,2101.43499469,9.999e-05,2]
[331155264,1720110409422,425.33751442,9.999e-05,2]
[331155265,1720110412410,155.25199293,9.999e-05,2]
[331155266,1720110417471,161.61987739,9.999e-05,2]
[331155267,1720110418572,577.9980738,9.999e-05,2]
[331155268,1720110422797,992.03627966,9.999e-05,2]
[331155269,1720110428057,195.38427408,0.0001,2]
[331155270,1720110428679,2796.78383695,9.999e-05,2]
[331155271,1720110443053,195.38427408,0.0001,2]
[331155272,1720110444476,524.53687803,9.999e-05,2]
[331155273,1720110454526,199.88176709,9.999e-05,2]
[331155274,1720110474190,187.64478609,9.999e-05,2]
[331155275,1720110485082,508.70425,9.999e-05,2]
[331155276,1720110485168,187.64478609,9.999e-05,2]
[331155277,1720110504537,210.3580098,9.999e-05,2]
[331155278,1720110506941,426.75131289,9.999e-05,2]
[331155279,1720110513943,2141.92716325,0.0001,2]
[331155280,1720110525298,562.23782788,9.999e-05,2]
[331155281,1720110544839,154.89931544,0.0001,2]
[331155282,1720110581136,908.33583081,9.999e-05,2]
[331155283,1720110602265,187.64478609,9.999e-05,2]
[331155284,1720110616166,187.64478609,9.999e-05,2]
[331155331,1720110632770,-2635.05597383,0.00012069,2]
[331155333,1720110632780,-404.67602219,0.0001212,2]
[331155335,1720110632789,-224.51370132,0.00012121,2]
[331155337,1720110632798,-300.0,0.00012169,2]
[331155339,1720110632807,-182.0,0.00012169,2]
[331155341,1720110632816,-24900.0,0.0001217,2]
[331155343,1720110632826,-250.0,0.00012302,2]
[331155345,1720110632835,-420.0,0.00013386,2]
[331155347,1720110632844,-898.16752495,0.00013498,2]
[331155349,1720110632853,-4494.32489043,0.00013588,2]
[331155351,1720110632863,-209.51418956,0.00013598,2]
[331155353,1720110632872,-14527.6407439,0.00013678,2]
[331155355,1720110632882,-87165.8444637,0.00013688,2]
[331155357,1720110632891,-500.0,0.00013698,2]
[331155359,1720110632900,-595.34,0.00013698,2]
[331155361,1720110632910,-500.0,0.00013698,2]
[331155363,1720110632919,-500.0,0.00013698,2]
[331155365,1720110632928,-500.0,0.00013698,2]
[331155367,1720110632938,-500.2459715,0.00013698,2]
[331155369,1720110632946,-500.0,0.00013698,2]
[331155371,1720110632956,-500.0,0.00013698,2]
[331155373,1720110632965,-504.56354981,0.00013698,2]
[331155375,1720110632974,-500.0,0.00013698,2]
[331155377,1720110632984,-500.0,0.00013698,2]
[331155379,1720110632993,-520.12525385,0.00013698,2]
[331155381,1720110633002,-500.0,0.00013698,2]
[331155383,1720110633012,-500.0,0.00013698,2]
[331155385,1720110633022,-500.0,0.00013698,2]
[331155387,1720110633031,-500.0,0.00013698,2]
[331155404,1720110633178,-500.0,0.00013698,2]
[331155406,1720110633188,-503.68030026,0.00013698,2]
[331155408,1720110633198,-500.0,0.00013698,2]
[331155410,1720110633209,-500.0,0.00013698,2]
[331155412,1720110633217,-500.0,0.00013698,2]
[331155414,1720110633227,-500.0,0.00013698,2]
[331155416,1720110633236,-500.0,0.00013698,2]
[331155418,1720110633245,-500.0,0.00013698,2]
[331155420,1720110633254,-586.44041,0.00013698,2]
[331155422,1720110633263,-500.0,0.00013698,2]
[331155424,1720110633272,-500.0,0.00013698,2]
[331155426,1720110633282,-1495.43,0.00013698,2]
[331155428,1720110633291,-500.0,0.00013698,2]
[331155430,1720110633300,-500.0,0.00013698,2]
[331155432,1720110633309,-500.0,0.00013698,2]
[331155434,1720110633318,-504.32857135,0.00013698,2]
[331155436,1720110633328,-500.0,0.00013698,2]
[331155438,1720110633337,-500.0,0.00013698,2]
[331155440,1720110633347,-500.0,0.00013698,2]
[331155442,1720110633356,-513.89317114,0.00013698,2]
[331155444,1720110633365,-503.92870865,0.00013698,2]
[331155446,1720110633375,-500.0,0.00013698,2]
[331155448,1720110633384,-500.0,0.00013698,2]
[331155450,1720110633398,-502.75853814,0.00013698,2]
[331155452,1720110633407,-500.0,0.00013698,2]
[331155454,1720110633416,-500.0,0.00013698,2]
[331155456,1720110633425,-510.87458043,0.00013698,2]
[331155458,1720110633436,-500.0,0.00013698,2]
[331155460,1720110633447,-500.0,0.00013698,2]
[331155462,1720110633456,-500.0,0.00013698,2]
[331155464,1720110633466,-500.0,0.00013698,2]
[331155466,1720110633475,-500.0,0.00013698,2]
[331155468,1720110633485,-308.29331516,0.00013698,2]
[331155470,1720110633494,-507.61178808,0.00013698,2]
[331155472,1720110633504,-395.55539709,0.00013698,2]
[331155474,1720110633513,-512.15369897,0.00013698,2]
[331155476,1720110633522,-477.0,0.00013698,2]
[331155478,1720110633532,-504.50325802,0.00013698,2]
[331155480,1720110633541,-500.0,0.00013698,2]
[331155482,1720110633551,-500.0,0.00013698,2]
[331155484,1720110633560,-500.0,0.00013698,2]
[331155486,1720110633569,-513.74471728,0.00013698,2]
[331155488,1720110633580,-500.0,0.00013698,2]
[331155489,1720110633589,-491.35864158,0.00013698,2]
[331155491,1720110633598,-500.0,0.00013698,2]
[331155493,1720110633606,-500.0,0.00013698,2]
[331155495,1720110633615,-500.0,0.00013698,2]
[331155497,1720110633624,-500.0,0.00013698,2]
[331155499,1720110633633,-500.0,0.00013698,2]
[331155501,1720110633643,-500.0,0.00013698,2]
[331155503,1720110633652,-510.38431698,0.00013698,2]
[331155505,1720110633661,-500.0,0.00013698,2]
[331155507,1720110633670,-500.0,0.00013698,2]
[331155509,1720110633679,-500.0,0.00013698,2]
[331155511,1720110633688,-500.0,0.00013698,2]
[331155513,1720110633699,-500.0,0.00013698,2]
[331155515,1720110633707,-500.0,0.00013698,2]
[331155517,1720110633716,-501.59094843,0.00013698,2]
[331155519,1720110633725,-500.0,0.00013698,2]
[331155521,1720110633734,-500.0,0.00013698,2]
[331155523,1720110633743,-634.02,0.00013698,2]
[331155525,1720110633754,-500.0,0.00013698,2]
[331155527,1720110633763,-501.3233223,0.00013698,2]
[331155530,1720110633773,-500.0,0.00013698,2]
[331155532,1720110633782,-500.0,0.00013698,2]
[331155534,1720110633791,-462.96109698,0.00013698,2]
[331155536,1720110633801,-500.0,0.00013698,2]
[331155537,1720110633810,-500.0,0.00013698,2]
[331155540,1720110633820,-500.0,0.00013698,2]
[331155542,1720110633829,-500.0,0.00013698,2]
[331155544,1720110633838,-500.0,0.00013698,2]
[331155545,1720110633847,-500.0,0.00013698,2]
[331155548,1720110633857,-500.0,0.00013698,2]
[331155550,1720110633867,-500.0,0.00013698,2]
[331155552,1720110633876,-500.0,0.00013698,2]
[331155554,1720110633886,-500.0,0.00013698,2]
[331155555,1720110633895,-270.97337564,0.00013698,2]
[331155557,1720110633904,-500.0,0.00013698,2]
[331155559,1720110633914,-940.13,0.00013698,2]
[331155562,1720110633924,-500.0,0.00013698,2]
[331155564,1720110633933,-500.0,0.00013698,2]
[331155565,1720110633943,-500.0,0.00013698,2]
[331155567,1720110633955,-500.0,0.00013698,2]
[331155569,1720110633964,-517.42106403,0.00013698,2]
[331155571,1720110633973,-500.0,0.00013698,2]
[331155573,1720110633982,-500.0,0.00013698,2]
[331155575,1720110633992,-500.0,0.00013698,2]
[331155577,1720110634001,-500.0,0.00013698,2]
[331155579,1720110634010,-500.0,0.00013698,2]
[331155581,1720110634020,-1438.39,0.00013698,2]
[331155583,1720110634029,-846.13,0.00013698,2]
[331155585,1720110634038,-535.1131884,0.00013698,2]
[331155587,1720110634047,-500.0,0.00013698,2]
[331155589,1720110634057,-503.96213452,0.00013698,2]
[331155591,1720110634066,-500.0,0.00013698,2]
[331155593,1720110634075,-500.0,0.00013698,2]
[331155595,1720110634084,-500.0,0.00013698,2]
[331155597,1720110634093,-728.91,0.00013698,2]
[331155599,1720110634102,-500.0,0.00013698,2]
[331155601,1720110634112,-500.0,0.00013698,2]
[331155603,1720110634121,-525.2830863,0.00013698,2]
[331155605,1720110634130,-1892.62,0.00013698,2]
[331155608,1720110634140,-10261.95,0.00013698,2]
[331155610,1720110634151,-379.83395268,0.00013698,2]
[331155611,1720110634160,-500.0,0.00013698,2]
[331155613,1720110634170,-500.0,0.00013698,2]
[331155616,1720110634179,-500.0,0.00013698,2]
[331155617,1720110634188,-500.0,0.00013698,2]
[331155619,1720110634198,-500.0,0.00013698,2]
[331155622,1720110634207,-500.0,0.00013698,2]
[331155624,1720110634218,-500.0,0.00013698,2]
[331155626,1720110634228,-500.0,0.00013698,2]
[331155628,1720110634237,-500.0,0.00013698,2]
[331155629,1720110634246,-500.0,0.00013698,2]
[331155632,1720110634257,-500.0,0.00013698,2]
[331155633,1720110634266,-500.0,0.00013698,2]
[331155635,1720110634275,-500.0,0.00013698,2]
[331155637,1720110634284,-591.54,0.00013698,2]
[331155639,1720110634293,-500.0,0.00013698,2]
[331155642,1720110634304,-500.0,0.00013698,2]
[331155644,1720110634313,-500.0,0.00013698,2]
[331155645,1720110634324,-344.81057919,0.00013698,2]
[331155647,1720110634333,-500.0,0.00013698,2]
[331155649,1720110634342,-500.0,0.00013698,2]
[331155652,1720110634352,-506.5886752,0.00013698,2]
[331155654,1720110634362,-500.0,0.00013698,2]
[331155655,1720110634372,-1204.96,0.00013698,2]
[331155658,1720110634382,-500.0,0.00013698,2]
[331155660,1720110634393,-500.0,0.00013698,2]
[331155662,1720110634402,-1611.14,0.00013698,2]
[331155664,1720110634415,-500.0,0.00013698,2]
[331155666,1720110634424,-629.77154159,0.00013698,2]
[331155668,1720110634435,-500.0,0.00013698,2]
[331155670,1720110634444,-500.0,0.00013698,2]
[331155672,1720110634453,-526.05,0.00013698,2]
[331155673,1720110634463,-500.0,0.00013698,2]
[331155675,1720110634471,-513.55992585,0.00013698,2]
[331155677,1720110634482,-500.0,0.00013698,2]
[331155679,1720110634492,-507.55288444,0.00013698,2]
[331155681,1720110634502,-500.0,0.00013698,2]
[331155683,1720110634511,-383.72479419,0.00013698,2]
[331155685,1720110634520,-500.0,0.00013698,2]
[331155687,1720110634530,-500.0,0.00013698,2]
[331155689,1720110634539,-637.97107105,0.00013698,2]
[331155691,1720110634548,-500.0,0.00013698,2]
[331155693,1720110634558,-500.0,0.00013698,2]
[331155695,1720110634568,-500.0,0.00013698,2]
[331155697,1720110634579,-1005.3,0.00013698,2]
[331155699,1720110634588,-504.14166719,0.00013698,2]
[331155701,1720110634597,-500.0,0.00013698,2]
[331155703,1720110634607,-500.0,0.00013698,2]
[331155705,1720110634616,-198.79627689,0.00013698,2]
[331155707,1720110634625,-500.0,0.00013698,2]
[331155709,1720110634634,-500.0,0.00013698,2]
[331155711,1720110634644,-500.0,0.00013698,2]
[331155713,1720110634652,-500.0,0.00013698,2]
[331155715,1720110634662,-500.0,0.00013698,2]
[331155717,1720110634671,-500.0,0.00013698,2]
[331155719,1720110634680,-500.0,0.00013698,2]
[331155721,1720110634689,-845.0,0.00013698,2]
[331155723,1720110634700,-1154.75,0.00013698,2]
[331155725,1720110634709,-12485.0,0.00013698,2]
[331155727,1720110634718,-500.0,0.00013698,2]
[331155729,1720110634728,-500.0,0.00013698,2]
[331155731,1720110634737,-500.0,0.00013698,2]
[331155733,1720110634746,-500.0,0.00013698,2]
[331155735,1720110634756,-500.0,0.00013698,2]
[331155737,1720110634765,-538.82,0.00013698,2]
[331155739,1720110634775,-500.0,0.00013698,2]
[331155741,1720110634785,-500.0,0.00013698,2]
[331155743,1720110634794,-756.84,0.00013698,2]
[331155745,1720110634804,-500.0,0.00013698,2]
[331155747,1720110634813,-500.0,0.00013698,2]
[331155749,1720110634823,-500.0,0.00013698,2]
[331155751,1720110634832,-587.1,0.00013698,2]
[331155753,1720110634841,-500.0,0.00013698,2]
[331155755,1720110634851,-455.26594778,0.00013698,2]
[331155757,1720110634860,-500.0,0.00013698,2]
[331155759,1720110634870,-500.0,0.00013698,2]
[331155761,1720110634879,-508.09458908,0.00013698,2]
[331155763,1720110634889,-500.0,0.00013698,2]
[331155765,1720110634899,-453.93472624,0.00013698,2]
[331155767,1720110634908,-500.0,0.00013698,2]
[331155769,1720110634918,-500.0,0.00013698,2]
[331155771,1720110634927,-838.16,0.00013698,2]
[331155773,1720110634937,-500.0,0.00013698,2]
[331155775,1720110634947,-500.0,0.00013698,2]
[331155777,1720110634957,-500.0,0.00013698,2]
[331155779,1720110634968,-500.0,0.00013698,2]
[331155781,1720110634977,-500.0,0.00013698,2]
[331155784,1720110634988,-500.0,0.00013698,2]
[331155785,1720110634997,-500.0,0.00013698,2]
[331155788,1720110635007,-345.80954829,0.00013698,2]
[331155790,1720110635017,-500.0,0.00013698,2]
[331155792,1720110635027,-500.0,0.00013698,2]
[331155793,1720110635036,-500.0,0.00013698,2]
[331155796,1720110635047,-500.0,0.00013698,2]
[331155798,1720110635057,-500.0,0.00013698,2]
[331155800,1720110635066,-500.0,0.00013698,2]
[331155801,1720110635076,-500.0,0.00013698,2]
[331155804,1720110635086,-913.62,0.00013698,2]
[331155805,1720110635095,-2297.38,0.00013698,2]
[331155808,1720110635105,-2297.38,0.00013698,2]
[331155810,1720110635115,-507.99358033,0.00013698,2]
[331155812,1720110635124,-2297.38,0.00013698,2]
[331155814,1720110635134,-2297.38,0.00013698,2]
[331155816,1720110635144,-897.42,0.00013698,2]
[331155818,1720110635154,-500.0,0.00013698,2]
[331155820,1720110635164,-502.56230673,0.00013698,2]
[331155821,1720110635174,-637.37,0.00013698,2]
[331155823,1720110635184,-500.0,0.00013698,2]
[331155825,1720110635193,-512.60662424,0.00013698,2]
[331155828,1720110635203,-500.0,0.00013698,2]
[331155830,1720110635213,-500.0,0.00013698,2]
[331155832,1720110635224,-500.0,0.00013698,2]
[331155834,1720110635234,-424.31660327,0.00013698,2]
[331156251,1720110639953,-75.68339673,0.00013698,2]
[331156254,1720110639964,-1258.68,0.00013698,2]
[331156255,1720110639975,-500.0,0.00013698,2]
[331156258,1720110639984,-505.11401885,0.00013698,2]
[331156259,1720110639995,-500.0,0.00013698,2]
[331156261,1720110640005,-500.0,0.00013698,2]
[331156263,1720110640015,-500.0,0.00013698,2]
[331156266,1720110640026,-500.0,0.00013698,2]
[331156268,1720110640035,-500.0,0.00013698,2]
[331156269,1720110640045,-501.62237539,0.00013698,2]
[331156271,1720110640055,-500.0,0.00013698,2]
[331156273,1720110640064,-500.0,0.00013698,2]
[331156275,1720110640074,-500.0,0.00013698,2]
[331156278,1720110640083,-2609.47,0.00013698,2]
[331156280,1720110640093,-500.0,0.00013698,2]
[331156282,1720110640103,-500.0,0.00013698,2]
[331156284,1720110640113,-500.0,0.00013698,2]
[331156285,1720110640123,-510.15835702,0.00013698,2]
[331156287,1720110640132,-500.0,0.00013698,2]
[331156290,1720110640143,-431.99558573,0.00013698,2]
[331156292,1720110640153,-500.0,0.00013698,2]
[331156294,1720110640163,-623.29,0.00013698,2]
[331156296,1720110640174,-500.0,0.00013698,2]
[331156298,1720110640184,-706.13,0.00013698,2]
[331156300,1720110640194,-508.53978107,0.00013698,2]
[331156302,1720110640204,-749.47,0.00013698,2]
[331156304,1720110640213,-3317.02,0.00013698,2]
[331156306,1720110640224,-500.0,0.00013698,2]
[331156308,1720110640234,-500.0,0.00013698,2]
[331156310,1720110640243,-518.32,0.00013698,2]
[331156312,1720110640252,-500.0,0.00013698,2]
[331156313,1720110640262,-500.0,0.00013698,2]
[331156315,1720110640272,-265.0,0.00013698,2]
[331156318,1720110640282,-1766.78,0.00013698,2]
[331156321,1720110640292,-500.0,0.00013698,2]
[331156323,1720110640302,-500.0,0.00013698,2]
[331156326,1720110640312,-1082.21,0.00013698,2]
[331156329,1720110640322,-500.0,0.00013698,2]
[331156333,1720110640332,-500.0,0.00013698,2]
[331156335,1720110640342,-500.0,0.00013698,2]
[331156338,1720110640352,-500.0,0.00013698,2]
[331156341,1720110640362,-500.0,0.00013698,2]
[331156343,1720110640372,-500.0,0.00013698,2]
[331156345,1720110640382,-189.02032087,0.00013698,2]
[331156347,1720110640392,-305.24475552,0.00013698,2]
[331156349,1720110640402,-636.09,0.00013698,2]
[331156351,1720110640414,-500.0,0.00013698,2]
[331156353,1720110640424,-1486.5,0.00013698,2]
[331156355,1720110640434,-500.0,0.00013698,2]
[331156357,1720110640445,-514.74497265,0.00013698,2]
[331156359,1720110640455,-500.0,0.00013698,2]
[331156361,1720110640464,-1050.51,0.00013698,2]
[331156363,1720110640475,-500.0,0.00013698,2]
[331156365,1720110640488,-500.0,0.00013698,2]
[331156367,1720110640498,-500.0,0.00013698,2]
[331156369,1720110640508,-500.0,0.00013698,2]
[331156371,1720110640518,-500.0,0.00013698,2]
[331156373,1720110640528,-500.0,0.00013698,2]
[331156375,1720110640538,-500.0,0.00013698,2]
[331156377,1720110640548,-500.0,0.00013698,2]
[331156379,1720110640558,-6118.75,0.00013698,2]
[331156381,1720110640570,-500.0,0.00013698,2]
[331156382,1720110640580,-500.0,0.00013698,2]
[331156384,1720110640590,-500.0,0.00013698,2]
[331156386,1720110640600,-500.0,0.00013698,2]
[331156388,1720110640610,-500.0,0.00013698,2]
[331156390,1720110640619,-893.3,0.00013698,2]
[331156392,1720110640629,-500.0,0.00013698,2]
[331156394,1720110640639,-506.80036557,0.00013698,2]
[331156396,1720110640648,-500.0,0.00013698,2]
[331156398,1720110640658,-520.42877987,0.00013698,2]
[331156399,1720110640668,-504.50360655,0.00013698,2]
[331156401,1720110640678,-500.0,0.00013698,2]
[331156403,1720110640687,-3590.73,0.00013698,2]
[331156405,1720110640698,-500.0,0.00013698,2]
[331156407,1720110640708,-500.0,0.00013698,2]
[331156409,1720110640719,-1226.25,0.00013698,2]
[331156412,1720110640732,-500.0,0.00013698,2]
[331156413,1720110640741,-500.0,0.00013698,2]
[331156415,1720110640751,-500.0,0.00013698,2]
[331156417,1720110640761,-500.0,0.00013698,2]